bitfinex/quotes_SOLUSD_20240822
["timestamp","ask_amount","ask_price","bid_price","bid_amount"]
[1724354925602,16.0465,142.98,142.94,58.34098]
[1724354925821,16.0465,142.98,142.95,4.05446319]
[1724354926026,16.0465,142.98,142.96,4.05446319]
[1724354926212,16.0465,142.98,142.94,58.34098]
[1724354926408,16.0465,142.98,142.95,4.05446319]
[1724354926613,16.0465,142.98,142.96,4.05446319]
[1724354926823,16.0465,142.98,142.94,58.34098]
[1724354927019,16.0465,142.98,142.95,4.05446358]
[1724354927214,16.0465,142.98,142.94,58.34098]
[1724354930238,15.9713,143.01,142.94,58.34098]
[1724354936748,15.9713,143.01,142.96,13.09]
[1724354936923,15.9713,143.01,142.98,13.09]
[1724354937451,26.4634,143.06,142.98,13.09]
[1724354937452,15.5674,143.05,142.98,13.09]
[1724354937631,15.5674,143.05,142.99,45.25098]
[1724354939219,15.5674,143.05,143.0,13.09]
[1724354939420,15.5674,143.05,143.01,45.12549]
[1724354958767,16.2597,143.08,143.02,13.09]
[1724354958962,16.2597,143.08,143.03,45.25098]
[1724354959968,16.2597,143.08,143.03,45.0]
[1724354960167,16.2597,143.08,143.0,13.09]
[1724354960348,16.2597,143.08,143.01,65.25098]
[1724354964172,29.3497,143.08,143.01,65.25098]
[1724354964467,21.82742269,143.07,143.01,20.0]
[1724354964645,13.09,143.07,142.99,20.0]
[1724354964847,13.09,143.07,143.0,45.25098]
[1724354965047,13.09,143.07,143.01,20.0]
[1724354967767,21.82744574,143.07,143.01,20.0]
[1724354967968,21.82744574,143.07,142.94,67.9583]
[1724354968264,28.6018,143.05,142.98,13.09]
[1724354968449,28.6018,143.05,142.99,20.0]
[1724354968655,1.74806583,143.04,142.97,20.0]
[1724354968981,1.74806583,143.04,142.96,13.09]
[1724354969662,1.74806583,143.04,142.97,0.25098]
[1724354969870,1.74806583,143.04,142.97,45.25098]
[1724354970248,1.74806583,143.04,142.98,20.0]
[1724354973271,35.5923,143.05,142.98,20.0]
[1724354973471,37.3404022,143.05,142.98,20.0]
[1724354973674,35.5923,143.05,142.98,20.0]
[1724354980575,36.80608554,143.05,142.98,20.0]
[1724354980777,16.72558554,143.05,142.98,20.0]
[1724354983082,23.71608554,143.05,142.98,20.0]
[1724354987266,23.71608554,143.05,142.99,4.0535319]
[1724354987468,23.71608554,143.05,143.0,4.0535319]
[1724354987696,23.71608554,143.05,142.98,20.0]
[1724354987891,23.71608554,143.05,142.99,4.0535319]
[1724354988064,23.71608554,143.05,143.0,4.0535319]
[1724354988269,23.71608554,143.05,142.98,20.0]
[1724354988795,23.71608554,143.05,142.99,4.05355608]
[1724354988962,23.71608554,143.05,143.0,4.05355608]
[1724354989157,23.71608554,143.05,142.98,20.0]
[1724354989357,23.71608554,143.05,142.99,4.05345935]
[1724354989581,23.71608554,143.05,143.0,4.05345935]
[1724354989794,23.71608554,143.05,142.98,20.0]
[1724354989964,23.71608554,143.05,142.99,4.05358026]
[1724354990169,23.71608554,143.05,143.0,4.05358026]
[1724354990378,23.71608554,143.05,142.98,20.0]
[1724354990570,23.71608554,143.05,142.99,4.05365281]
[1724354990767,23.71608554,143.05,143.0,4.05365281]
[1724354990977,23.71608554,143.05,142.98,20.0]
[1724354991259,23.71608554,143.05,142.99,4.05365163]
[1724354991473,13.09,143.02,142.98,20.0]
[1724354991683,1.74845409,143.01,142.96,26.54570271]
[1724354991887,1.74845409,143.01,142.96,20.0]
[1724354992065,1.74845409,143.01,142.97,4.05418446]
[1724354992265,1.74845409,143.01,142.98,4.05418446]
[1724354992468,1.74845409,143.01,142.96,20.0]
[1724354992680,1.74845409,143.01,142.97,4.05419227]
[1724354992859,19.7361,143.02,142.96,20.0]
[1724354992860,6.6461,143.02,142.98,4.05419227]
[1724354993059,6.6461,143.02,142.97,6.54542139]
[1724354993256,6.6461,143.02,142.98,4.05400003]
[1724354993467,6.6461,143.02,142.99,4.05400003]
[1724354993679,6.6461,143.02,142.96,20.0]
[1724354993878,6.6461,143.02,142.97,10.59892142]
[1724354994088,6.6461,143.02,142.98,4.05380772]
[1724354994299,6.6461,143.02,142.97,6.54526754]
[1724354994472,6.6461,143.02,142.98,4.05390387]
[1724354994680,6.6461,143.02,142.97,6.54526754]
[1724354994870,6.6461,143.02,142.98,4.05390328]
[1724354995069,6.6461,143.02,142.97,6.5452666]
[1724354995289,6.6461,143.02,142.98,4.05390387]
[1724354995487,6.6461,143.02,142.97,6.5452666]
[1724354995670,6.6461,143.02,142.98,4.05390328]
[1724354995865,6.6461,143.02,142.99,4.05380654]
[1724354996078,6.6461,143.02,142.97,13.09]
[1724354996287,6.6461,143.02,142.98,4.05380713]
[1724354996486,6.6461,143.02,142.99,4.05380713]
[1724354996683,6.6461,143.02,142.97,13.09]
[1724354996893,6.6461,143.02,142.98,4.05380594]
[1724354997080,6.6461,143.02,142.99,4.05380594]
[1724354997399,6.6461,143.02,142.97,13.09]
[1724354997596,6.6461,143.02,142.98,4.05383131]
[1724354997796,16.2373,143.03,142.97,13.09]
[1724354997985,16.2373,143.03,142.98,4.05383072]
[1724354998298,16.2373,143.03,142.99,4.05383072]
[1724354998589,16.2373,143.03,142.98,6.54504681]
[1724354998773,16.2373,143.03,142.99,4.05376512]
[1724354998978,16.2373,143.03,142.98,6.54504681]
[1724354999180,16.2373,143.03,142.99,4.05375628]
[1724354999379,16.2373,143.03,142.98,6.54504681]
[1724354999581,16.2373,143.03,142.99,4.05375569]
[1724354999783,16.2373,143.03,142.98,6.54504681]
[1724354999990,16.2373,143.03,142.99,4.0537566]
[1724355000208,16.2373,143.03,142.98,6.54504681]
[1724355000499,16.2373,143.03,142.99,4.053756]
[1724355000679,16.2373,143.03,142.98,6.54504681]
[1724355000890,16.2373,143.03,142.97,13.21549]
[1724355001200,16.2373,143.03,142.98,6.67048321]
[1724355001369,16.2373,143.03,142.99,21.03349485]
[1724355002374,16.2373,143.03,142.99,14.48850164]
[1724355002596,16.2373,143.03,142.99,13.09]
[1724355003687,16.2373,143.03,143.0,6.54406817]
[1724355004082,16.2373,143.03,142.99,13.09]
[1724355007498,16.2373,143.03,142.98,0.12549]
[1724355007716,16.2373,143.03,142.97,58.34098]
[1724355007976,16.2373,143.03,142.98,20.0]
[1724355008287,16.2373,143.03,142.99,45.25098]
[1724355009406,16.2373,143.03,142.98,20.0]
[1724355009775,16.2373,143.03,142.97,20.12549]
[1724355009997,16.2373,143.03,142.98,0.12549]
[1724355010276,16.2373,143.03,142.97,17.134124]
[1724355014370,16.2373,143.03,142.98,58.34098]
[1724355015274,16.2373,143.03,142.98,45.25098]
[1724355015503,16.2373,143.03,142.97,17.134124]
[1724355015709,16.2373,143.03,142.98,20.0]
[1724355016783,17.44937223,143.03,142.97,20.0]
[1724355017601,17.44937223,143.03,142.98,14.48854608]
[1724355017783,17.44937223,143.03,142.98,14.48846767]
[1724355018101,17.44937223,143.03,142.99,0.25098]
[1724355018312,17.44937223,143.03,142.99,45.25098]
[1724355022288,16.2373,143.03,142.99,45.25098]
[1724355022994,16.2373,143.03,142.99,45.12549]
[1724355025315,16.2373,143.03,142.98,45.0]
[1724355030689,1.74831586,143.02,142.97,20.0]
[1724355031317,29.3273,143.03,142.97,20.0]
[1724355031529,16.2373,143.03,142.97,20.0]
[1724355033327,16.2373,143.03,142.98,13.09]
[1724355034530,16.2373,143.03,143.0,13.09]
[1724355035308,15.9406,143.06,143.02,13.09]
[1724355035511,15.9406,143.06,143.04,13.09]
[1724355035913,15.9406,143.06,143.02,13.09]
[1724355036113,15.9406,143.06,143.03,45.0]
[1724355036636,15.9406,143.06,143.02,13.09]
[1724355037141,15.9406,143.06,143.0,13.09]
[1724355037435,15.9406,143.06,143.01,65.0]
[1724355038227,15.9406,143.06,143.0,13.09]
[1724355038433,15.9406,143.06,143.01,6.58346708]
[1724355038620,15.9406,143.06,143.0,13.09]
[1724355038815,15.9406,143.06,143.01,6.58353587]
[1724355039119,15.9406,143.06,143.0,13.09]
[1724355039334,15.9406,143.06,143.02,13.09]
[1724355040035,15.9406,143.06,143.03,6.58529688]
[1724355040219,15.9406,143.06,143.02,13.09]
[1724355040417,15.9406,143.06,143.03,6.58529688]
[1724355040607,15.9406,143.06,143.02,13.09]
[1724355040907,15.9406,143.06,143.03,6.58530752]
[1724355041103,15.9406,143.06,143.02,13.09]
[1724355041307,21.6692,143.09,143.04,13.09]
[1724355041538,15.6527,143.09,143.06,13.09]
[1724355047141,15.6527,143.09,143.03,0.12549]
[1724355047349,15.6527,143.09,143.02,33.34098]
[1724355047512,15.6527,143.09,143.03,51.58687423]
[1724355047711,15.6527,143.09,143.04,20.25098]
[1724355047944,15.6527,143.09,143.05,45.0]
[1724355048726,15.6527,143.09,143.06,13.09]
[1724355050038,15.6527,143.09,143.05,45.0]
[1724355050540,15.6527,143.09,143.04,20.0]
[1724355050737,15.6527,143.09,143.03,20.0]
[1724355055143,13.09,143.08,143.01,39.67502724]
[1724355055446,13.09,143.08,143.01,33.09]
[1724355055647,1.7476701,143.07,143.01,33.09]
[1724355056234,13.09,143.08,143.01,33.09]
[1724355060661,23.85041181,143.09,143.01,33.09]
[1724355060828,16.86171181,143.09,143.03,13.09]
[1724355061035,16.86171181,143.09,143.04,45.25098]
[1724355061347,15.6527,143.09,143.07,13.09]
[1724355061555,6.3401,143.12,143.07,13.09]
[1724355061764,6.3401,143.12,143.08,1.39761848]
[1724355062055,6.3401,143.12,143.07,13.09]
[1724355062564,6.3401,143.12,143.06,0.12549]
[1724355062766,6.3401,143.12,143.06,13.09]
[1724355064528,6.3401,143.12,143.07,45.0]
[1724355064725,6.3401,143.12,143.05,20.12549]
[1724355064928,6.3401,143.12,143.06,45.0]
[1724355067862,13.3272,143.12,143.05,20.12549]
[1724355068253,6.3401,143.12,143.05,20.12549]
[1724355073965,6.3401,143.12,143.06,13.09]
[1724355075885,6.3401,143.12,143.07,45.0]
[1724355077555,6.3401,143.12,143.08,13.09]
[1724355077756,16.0832,143.13,143.08,13.09]
[1724355077965,16.0832,143.13,143.1,13.09]
[1724355078272,16.0832,143.13,143.09,45.25098]
[1724355078273,21.6624,143.16,143.12,13.09]
[1724355082173,21.6624,143.16,143.1,4.05039966]
[1724355082365,28.6476,143.16,143.1,4.05039966]
[1724355082554,6.9857,143.15,143.1,4.05039966]
[1724355083867,28.6476,143.16,143.1,4.05039966]
[1724355088487,28.6476,143.16,143.11,13.09]
[1724355089378,28.6476,143.16,143.1,4.05039966]
[1724355089581,28.6476,143.16,143.09,33.21549]
[1724355089786,28.6476,143.16,143.1,45.0]
[1724355094585,21.6624,143.16,143.11,0.12549]
[1724355094769,28.6476,143.16,143.11,0.12549]
[1724355094971,28.6476,143.16,143.1,45.0]
[1724355097816,6.9857,143.15,143.1,45.0]
[1724355100102,8.7327719,143.14,143.09,20.0]
[1724355100272,6.9861,143.14,143.06,50.27146141]
[1724355100471,6.9861,143.14,143.07,4.05041306]
[1724355100786,6.9867,143.13,143.06,33.09]
[1724355100967,17.36209905,143.12,143.06,13.09]
[1724355101787,15.6151,143.12,143.06,13.09]
[1724355102168,15.6151,143.12,143.07,20.0]
[1724355103165,15.6151,143.12,143.07,24.05078986]
[1724355103566,15.6151,143.12,143.07,20.0]
[1724355104192,15.6151,143.12,143.07,24.05084036]
[1724355104886,15.6151,143.12,143.07,20.0]
[1724355105190,15.6151,143.12,143.07,24.05086496]
[1724355106978,15.6151,143.12,143.08,13.09]
[1724355107603,15.6151,143.12,143.09,45.0]
[1724355108101,15.6151,143.12,143.07,20.0]
[1724355110497,15.6151,143.12,143.07,26.59061382]
[1724355110700,15.6151,143.12,143.07,20.0]
[1724355112410,15.6151,143.12,143.07,26.59033153]
[1724355112584,15.6151,143.12,143.07,33.13058131]
[1724355112784,15.6151,143.12,143.07,26.54024978]
[1724355113126,15.6151,143.12,143.07,20.0]
[1724355115398,15.6151,143.12,143.07,26.59004036]
[1724355116414,15.6151,143.12,143.07,20.0]
[1724355117012,15.6151,143.12,143.07,26.59061382]
[1724355117215,15.6151,143.12,143.07,20.0]
[1724355119412,15.6151,143.12,143.08,6.59033153]
[1724355119721,15.6151,143.12,143.07,20.0]
[1724355120110,1.74706816,143.11,143.05,7.2723872]
[1724355120403,1.74706816,143.11,143.06,6.58942223]
[1724355120622,1.74706816,143.11,143.02,26.99058535]
[1724355120801,1.74706816,143.11,143.03,0.12549]
[1724355120992,41.9912,143.12,143.04,6.58907262]
[1724355121197,41.9912,143.12,143.05,6.71456262]
[1724355121395,41.9912,143.12,143.06,51.71456262]
[1724355121607,41.9912,143.12,143.07,6.58907262]
[1724355121815,41.9912,143.12,143.06,45.12549]
[1724355122000,41.9912,143.12,143.07,6.58933951]
[1724355122200,41.9912,143.12,143.06,0.12549]
[1724355122402,41.9912,143.12,143.07,6.58934124]
[1724355122592,41.9912,143.12,143.06,0.12549]
[1724355122793,41.9912,143.12,143.07,6.58933951]
[1724355123011,28.9012,143.12,143.06,0.12549]
[1724355123219,28.9012,143.12,143.07,6.58933951]
[1724355123514,28.9012,143.12,143.06,0.12549]
[1724355123722,28.9012,143.12,143.07,6.58934124]
[1724355123898,28.9012,143.12,143.06,0.12549]
[1724355124100,28.9012,143.12,143.07,6.58934124]
[1724355124305,28.9012,143.12,143.06,0.12549]
[1724355124507,28.9012,143.12,143.07,6.58933237]
[1724355124818,28.9012,143.12,143.06,0.12549]
[1724355125021,28.9012,143.12,143.07,6.58934124]
[1724355125196,41.9912,143.12,143.06,0.12549]
[1724355125399,41.9912,143.12,143.07,6.58933951]
[1724355125623,41.9912,143.12,143.06,0.12549]
[1724355125817,41.9912,143.12,143.07,6.58933951]
[1724355126124,41.9912,143.12,143.06,0.12549]
[1724355126331,41.9912,143.12,143.07,6.58941897]
[1724355126519,41.9912,143.12,143.06,0.12549]
[1724355126901,41.9912,143.12,143.07,6.58941897]
[1724355127102,41.9912,143.12,143.06,0.12549]
[1724355131924,41.9912,143.12,143.05,45.12549]
[1724355132111,41.9912,143.12,143.05,0.12549]
[1724355132435,41.9912,143.12,143.05,20.12549]
[1724355133911,41.9912,143.12,143.05,20.0]
[1724355134235,13.09,143.1,143.04,20.0]
[1724355134422,1.74734709,143.09,143.04,20.0]
[1724355134621,1.74734709,143.09,143.02,27.27449989]
[1724355134836,28.1774,143.08,143.02,27.27449989]
[1724355135007,28.1774,143.08,143.0,13.09]
[1724355135421,28.1774,143.08,143.0,20.36404213]
[1724355136221,15.0874,143.08,143.01,65.0]
[1724355136502,15.0874,143.08,143.02,0.25098]
[1724355148440,28.1774,143.08,143.02,0.25098]
[1724355148621,34.708,143.08,143.02,0.25098]
[1724355160351,41.6971,143.08,143.02,0.25098]
[1724355160564,13.09,143.06,143.01,65.0]
[1724355164852,34.708,143.08,143.01,65.0]
[1724355168954,41.6972,143.08,143.02,4.05221228]
[1724355169265,13.09,143.06,143.03,4.05221228]
[1724355169468,13.09,143.06,143.04,4.05221228]
[1724355169639,13.09,143.06,143.01,20.0]
[1724355169838,13.09,143.06,143.02,4.05230858]
[1724355170043,13.09,143.06,143.03,4.05230858]
[1724355170237,13.09,143.06,143.04,4.05230858]
[1724355170576,13.09,143.06,143.01,20.0]
[1724355170928,15.439,143.05,143.02,4.05228741]
[1724355171133,15.439,143.05,143.03,4.05228741]
[1724355171348,15.439,143.05,143.0,0.12549]
[1724355171533,15.439,143.05,143.01,4.05260546]
[1724355171733,15.439,143.05,143.02,4.05260546]
[1724355171942,15.439,143.05,143.03,4.05260546]
[1724355172147,15.439,143.05,143.0,0.25098]
[1724355172363,15.439,143.05,143.01,4.0525999]
[1724355172555,15.439,143.05,143.02,4.0525999]
[1724355172743,15.439,143.05,143.03,4.0525999]
[1724355172947,15.439,143.05,143.0,0.25098]
[1724355173165,15.439,143.05,143.01,4.05248185]
[1724355173358,15.439,143.05,143.0,0.25098]
[1724355173359,15.439,143.05,143.02,4.05248185]
[1724355173575,15.439,143.05,143.0,0.25098]
[1724355173866,15.439,143.05,143.01,4.05250667]
[1724355174054,15.439,143.05,143.02,4.05250667]
[1724355174373,15.439,143.05,143.03,4.05250667]
[1724355174667,15.439,143.05,143.0,0.25098]
[1724355174857,15.439,143.05,143.01,4.05250607]
[1724355175046,15.439,143.05,143.02,4.05250607]
[1724355175253,15.439,143.05,143.03,4.05250607]
[1724355175563,15.439,143.05,143.0,0.25098]
[1724355175950,15.439,143.05,143.0,1.64922993]
[1724355176261,15.439,143.05,143.01,0.12549]
[1724355176450,15.439,143.05,143.01,20.25098]
[1724355177465,15.439,143.05,143.02,1.39815243]
[1724355178957,15.439,143.05,143.02,45.0]
[1724355179142,15.439,143.05,143.03,0.25098]
[1724355180244,15.439,143.05,143.01,20.0]
[1724355180455,15.439,143.05,143.0,20.0]
[1724355180762,15.439,143.05,143.01,45.25098]
[1724355184860,28.529,143.05,143.01,0.12549]
[1724355185061,28.529,143.05,142.98,20.0]
[1724355185277,28.529,143.05,142.99,45.25098]
[1724355185575,15.439,143.05,143.0,20.0]
[1724355185984,15.439,143.05,143.01,0.25098]
[1724355187368,15.439,143.05,143.02,6.58589382]
[1724355187549,15.439,143.05,143.03,6.58589382]
[1724355187750,15.439,143.05,143.01,0.25098]
[1724355188866,15.439,143.05,143.01,45.25098]
[1724355189668,15.439,143.05,143.01,58.34098]
[1724355191775,15.439,143.05,143.01,45.25098]
[1724355192174,15.439,143.05,143.01,0.25098]
[1724355202063,23.1147,143.08,143.01,58.34098]
[1724355203169,30.1039,143.08,143.01,58.34098]
[1724355204191,23.1147,143.08,143.03,13.09]
[1724355205088,23.1147,143.08,143.04,0.25098]
[1724355205274,23.1147,143.08,143.04,45.25098]
[1724355210405,16.5841,143.08,143.04,0.25098]
[1724355213687,16.5841,143.08,143.04,13.34098]
[1724355213914,16.5841,143.08,143.05,45.0]
[1724355215169,22.6633,143.12,143.06,13.34098]
[1724355215416,22.6633,143.12,143.07,45.0]
[1724355216968,31.39734807,143.12,143.06,0.25098]
[1724355217199,31.39734807,143.12,143.05,65.25098]
[1724355217500,13.09,143.11,143.05,65.25098]
[1724355217927,1.74715581,143.1,143.05,20.0]
[1724355218204,1.74715581,143.1,143.03,20.0]
[1724355218377,22.9472,143.1,143.02,20.0]
[1724355219723,22.9472,143.1,143.03,45.25098]
[1724355221891,22.9472,143.1,143.03,58.34098]
[1724355230908,6.9886,143.09,143.03,58.34098]
[1724355236438,6.9886,143.09,143.03,45.25098]
[1724355239242,24.15589285,143.1,143.03,45.25098]
[1724355239841,17.16769285,143.1,143.04,13.09]
[1724355240031,17.16769285,143.1,143.05,0.25098]
[1724355240231,17.16769285,143.1,143.05,45.25098]
[1724355240419,17.16769285,143.1,143.06,13.09]
[1724355240814,17.16769285,143.1,143.05,0.12549]
[1724355241036,24.15579285,143.1,143.02,20.0]
[1724355241239,24.15579285,143.1,143.04,13.09]
[1724355242135,17.16769285,143.1,143.04,13.09]
[1724355242439,17.16769285,143.1,143.05,45.25098]
[1724355243712,15.9591,143.1,143.05,45.25098]
[1724355244836,15.9591,143.1,143.06,13.09]
[1724355245713,15.9591,143.1,143.07,45.25098]
[1724355249448,15.9591,143.1,143.08,6.58928715]
[1724355249613,15.9591,143.1,143.07,45.25098]
[1724355249813,15.9591,143.1,143.08,6.58933006]
[1724355250032,15.9591,143.1,143.07,45.25098]
[1724355250526,15.9591,143.1,143.08,6.58942456]
[1724355250724,15.9591,143.1,143.07,45.25098]
[1724355251647,15.9591,143.1,143.04,13.09]
[1724355251827,15.9591,143.1,143.05,71.8391033]
[1724355252032,15.9591,143.1,143.06,6.5881233]
[1724355252346,15.9591,143.1,143.05,65.25098]
[1724355252532,15.9591,143.1,143.06,6.58802436]
[1724355252719,15.9591,143.1,143.07,0.12549]
[1724355253049,15.9591,143.1,143.05,65.25098]
[1724355253344,15.9591,143.1,143.06,6.58816423]
[1724355253588,15.9591,143.1,143.05,65.25098]
[1724355253732,15.9591,143.1,143.06,19.67816596]
[1724355253919,15.9591,143.1,143.06,13.09]
[1724355257244,15.9591,143.1,143.05,20.0]
[1724355257548,15.9591,143.1,143.05,13.09]
[1724355257746,15.9591,143.1,143.06,26.5880932]
[1724355258047,15.9591,143.1,143.06,20.0]
[1724355259247,15.9591,143.1,143.07,6.58865948]
[1724355259556,15.9591,143.1,143.06,20.0]
[1724355262024,15.9591,143.1,143.07,19.92963948]
[1724355262224,15.9591,143.1,143.07,13.34098]
[1724355264727,15.9591,143.1,143.06,20.0]
[1724355265157,15.9591,143.1,143.07,6.58880106]
[1724355265346,15.9591,143.1,143.06,20.0]
[1724355266452,15.9591,143.1,143.07,6.5887305]
[1724355266652,15.9591,143.1,143.06,20.0]
[1724355266856,15.9591,143.1,143.07,6.58873221]
[1724355267026,15.9591,143.1,143.06,20.0]
[1724355279447,15.9591,143.1,143.07,13.09]
[1724355280142,15.9591,143.1,143.06,20.0]
[1724355280330,15.9591,143.1,143.07,0.12549]
[1724355280957,15.9591,143.1,143.06,20.0]
[1724355281166,15.9591,143.1,143.05,0.12549]
[1724355281334,15.9591,143.1,143.06,6.58809437]
[1724355281537,15.9591,143.1,143.05,45.25098]
[1724355281743,15.9591,143.1,143.06,26.58809437]
[1724355281941,15.9591,143.1,143.06,20.0]
[1724355283238,15.9591,143.1,143.07,6.58809437]
[1724355283438,15.9591,143.1,143.06,20.0]
[1724355283652,15.9591,143.1,143.07,6.58809437]
[1724355283852,15.9591,143.1,143.06,20.0]
[1724355284053,15.9591,143.1,143.07,6.58809437]
[1724355284239,15.9591,143.1,143.06,20.0]
[1724355284440,15.9591,143.1,143.07,6.58809437]
[1724355284660,15.9591,143.1,143.06,20.0]
[1724355284959,15.9591,143.1,143.07,6.58809437]
[1724355285159,15.9591,143.1,143.06,20.0]
[1724355285365,15.9591,143.1,143.07,6.58809609]
[1724355285576,15.9591,143.1,143.06,20.0]
[1724355286167,15.9591,143.1,143.07,6.58809437]
[1724355286359,15.9591,143.1,143.06,20.0]
[1724355286550,15.9591,143.1,143.07,6.58803439]
[1724355286871,15.9591,143.1,143.06,20.0]
[1724355287045,15.9591,143.1,143.07,6.58802379]
[1724355287245,15.9591,143.1,143.06,20.0]
[1724355287461,15.9591,143.1,143.07,6.58802379]
[1724355287762,15.9591,143.1,143.06,20.0]
[1724355287972,15.9591,143.1,143.07,6.58809609]
[1724355288264,15.9591,143.1,143.06,20.0]
[1724355288442,15.9591,143.1,143.07,6.58809609]
[1724355288644,15.9591,143.1,143.06,20.0]
[1724355288834,15.9591,143.1,143.07,6.58803267]
[1724355289036,15.9591,143.1,143.06,20.0]
[1724355289254,15.9591,143.1,143.07,6.58803439]
[1724355289455,15.9591,143.1,143.06,20.0]
[1724355295981,15.9591,143.1,143.07,4.05151045]
[1724355296163,15.9591,143.1,143.06,20.0]
[1724355297781,15.9591,143.1,143.05,0.25098]
[1724355297961,17.70638798,143.1,143.04,65.25098]
[1724355298570,17.70638798,143.1,143.03,7.27659064]
[1724355298571,1.74732704,143.09,143.03,7.27659064]
[1724355298788,15.7006,143.06,142.98,20.0]
[1724355298951,15.7006,143.06,142.98,33.09]
[1724355299153,15.7006,143.06,142.99,7.27956549]
[1724355299960,15.7006,143.06,143.0,65.25098]
[1724355300579,15.7006,143.06,143.0,78.34098]
[1724355301873,15.7006,143.06,143.0,98.34098]
[1724355302066,15.5324,143.1,143.04,13.09]
[1724355302267,15.5324,143.1,143.06,13.09]
[1724355302469,15.5324,143.1,143.05,20.12549]
[1724355302688,15.5324,143.1,143.05,20.0]
[1724355303173,15.5324,143.1,143.05,33.09]
[1724355303871,15.5324,143.1,143.05,13.09]
[1724355304562,15.5324,143.1,143.04,0.12549]
[1724355304766,15.5324,143.1,143.04,0.25098]
[1724355305086,15.5324,143.1,143.04,45.25098]
[1724355305384,15.5324,143.1,143.05,20.0]
[1724355307876,15.5324,143.1,143.06,0.25098]
[1724355309587,15.5324,143.1,143.05,33.09]
[1724355309897,15.5324,143.1,143.05,20.0]
[1724355316693,15.5324,143.1,143.05,33.09]
[1724355316901,15.5324,143.1,143.06,0.25098]
[1724355325403,15.5324,143.1,143.05,20.0]
[1724355326711,22.5205,143.1,143.04,45.12549]
[1724355326913,17.27976585,143.1,143.04,0.12549]
[1724355327083,24.26786585,143.1,143.04,0.25098]
[1724355327284,24.26786585,143.1,143.04,20.25098]
[1724355328097,13.09,143.09,143.04,20.0]
[1724355328906,1.74744416,143.08,143.04,20.0]
[1724355329084,1.74744416,143.08,143.03,45.0]
[1724355329284,1.74744416,143.08,143.01,13.09]
[1724355329285,1.74744416,143.08,143.02,45.12549]
[1724355329510,1.74744416,143.08,143.03,20.0]
[1724355329720,13.09,143.07,143.0,20.0]
[1724355329882,15.5666,143.06,143.0,20.0]
[1724355330498,13.09,143.05,142.96,43.197]
[1724355330820,13.09,143.05,142.98,7.27910464]
[1724355331683,13.09,143.05,142.99,20.12549]
[1724355331892,13.09,143.03,142.98,7.27910464]
[1724355332096,13.09,143.03,142.95,20.49088012]
[1724355332314,13.09,143.03,142.96,7.28013478]
[1724355332831,15.5666,143.02,142.96,7.28013478]
[1724355333127,15.5666,143.02,142.91,20.8559115]
[1724355333128,13.09,142.98,142.91,0.8559115]
[1724355333894,6.993,143.0,142.91,21.34679162]
[1724355334092,20.083,143.0,142.91,21.34679162]
[1724355334320,6.2716,142.97,142.91,0.8559115]
[1724355334523,14.83902665,142.96,142.91,0.8559115]
[1724355334724,13.09,142.96,142.91,0.8559115]
[1724355334900,6.2716,142.97,142.91,13.9459115]
[1724355335225,6.2716,142.97,142.91,0.8559115]
[1724355335720,6.2716,142.97,142.91,20.8559115]
[1724355336991,6.2716,142.97,142.92,58.34098]
[1724355337611,15.5666,142.99,142.93,1.3989885]
[1724355337821,15.5666,142.99,142.92,58.34098]
[1724355338703,15.5666,142.99,142.92,45.25098]
[1724355340423,15.5666,142.99,142.93,1.02120733]
[1724355340605,15.5666,142.99,142.94,0.25098]